bitfinex/quotes_ETHUSD_20230905
["timestamp","ask_amount","ask_price","bid_price","bid_amount"]
[1693944248378,1.09749881,1632.6,1632.5,7.19004133]
[1693944249397,1.09749881,1632.6,1632.5,13.31561133]
[1693944249678,1.09749881,1632.6,1632.5,7.19004133]
[1693944250279,1.09749881,1632.6,1632.5,13.31561133]
[1693944260409,1.09749881,1632.6,1632.5,7.19004133]
[1693944260769,1.09749881,1632.6,1632.5,8.78656001]
[1693944260969,1.09749881,1632.6,1632.5,7.19004133]
[1693944270512,7.23152733,1632.6,1632.5,1.06447133]
[1693944271717,7.23152733,1632.6,1632.4,12.74980133]
[1693944272216,9.17912733,1632.6,1632.4,12.74980133]
[1693944277335,9.17912733,1632.6,1632.4,6.62404133]
[1693944284757,4.38801426,1632.5,1632.4,0.007]
[1693944284963,24.32386832,1632.5,1632.4,0.007]
[1693944285172,28.28571532,1632.5,1632.4,0.007]
[1693944285439,2.02825333,1632.1,1631.9,14.59568201]
[1693944285617,2.02825333,1632.1,1632.0,1.0647781]
[1693944286221,5.91076692,1632.1,1631.9,0.1]
[1693944286447,18.16490692,1632.1,1631.9,0.1]
[1693944287040,16.13665359,1632.1,1631.9,0.1]
[1693944287350,1.94447644,1631.8,1631.7,12.36382657]
[1693944287514,1.94447644,1631.8,1631.7,6.23545657]
[1693944287912,1.94447644,1631.8,1631.7,20.30247455]
[1693944296248,1.94447644,1631.8,1631.7,31.83173627]
[1693944296458,1.94447644,1631.8,1631.7,41.41741285]
[1693944296666,1.94447644,1631.8,1631.7,47.06080511]
[1693944296859,6.1254,1632.6,1631.8,7.5577845]
[1693944297169,2.14408233,1632.1,1632.0,18.3819]
[1693944297461,2.14408233,1632.1,1632.0,27.08155843]
[1693944298035,2.14408233,1632.1,1632.0,32.08155843]
[1693944300227,2.14408233,1632.1,1632.0,35.14857269]
[1693944301027,2.01522984,1632.1,1632.0,35.14857269]
[1693944301838,2.01522984,1632.1,1632.0,41.57057269]
[1693944302167,1641.61337323,1632.0,1631.9,14.76247226]
[1693944302463,1632.45937323,1632.0,1631.9,32.89751226]
[1693944302773,1632.45937323,1632.0,1631.9,39.02533226]
[1693944304142,1632.45937323,1632.0,1631.9,44.02533226]
[1693944304337,1632.45937323,1632.0,1631.9,47.50533226]
[1693944304932,1632.45937323,1632.0,1631.9,50.57234652]
[1693944309497,1632.45937323,1632.0,1631.9,51.0672303]
[1693944310766,1632.45937323,1632.0,1631.9,38.0374103]
[1693944312151,1632.45937323,1632.0,1631.9,39.61176644]
[1693944312466,1632.45937323,1632.0,1631.9,38.96837418]
[1693944313165,1632.45937323,1632.0,1631.9,35.90135992]
[1693944313368,1632.45937323,1632.0,1631.9,32.90135992]
[1693944313544,1632.45937323,1632.0,1631.9,31.32700378]
[1693944314638,1632.45937323,1632.0,1631.9,35.90175344]
[1693944322193,1632.45937323,1632.0,1631.9,36.96649591]
[1693944325165,1632.45937323,1632.0,1631.9,37.60988817]
[1693944328496,1632.45937323,1632.0,1631.9,40.67690243]
[1693944329277,1632.45937323,1632.0,1631.9,43.39658631]
[1693944331169,1608.77320323,1632.0,1631.9,49.36101405]
[1693944332717,1609.30564237,1632.0,1631.9,49.36101405]
[1693944333211,1609.30564237,1632.0,1631.9,49.31101405]
[1693944334223,1609.30564237,1632.0,1631.9,50.59528199]
[1693944335293,1609.30564237,1632.0,1631.9,53.59528199]
[1693944337217,1609.30564237,1632.0,1631.9,50.59528199]
[1693944337423,1609.30564237,1632.0,1631.9,52.63122424]
[1693944338025,1609.30564237,1632.0,1631.9,53.59475234]
[1693944338228,1609.30564237,1632.0,1631.9,52.63122424]
[1693944340186,1138.09135665,1632.0,1631.9,65.55661543]
[1693944340388,1124.23910995,1632.0,1631.9,74.5378286]
[1693944340904,1115.08510995,1632.0,1631.9,74.5378286]
[1693944341297,1113.94970434,1632.0,1631.9,76.78802431]
[1693944342017,1113.69209727,1632.0,1631.9,76.78802431]
[1693944342187,1113.19739727,1632.0,1631.9,76.78802431]
[1693944342387,1104.04339727,1632.0,1631.9,76.78802431]
[1693944342898,1085.73539727,1632.0,1631.9,76.78802431]
[1693944343090,1085.73539727,1632.0,1631.9,86.05858904]
[1693944344239,1085.73539727,1632.0,1631.9,83.80839333]
[1693944345193,1085.24421974,1632.0,1631.9,83.80839333]
[1693944346327,1085.08421974,1632.0,1631.9,83.80839333]
[1693944346692,1084.92621974,1632.0,1631.9,83.80839333]
[1693944347402,1084.45921974,1632.0,1631.9,83.80839333]
[1693944347603,1036.39421974,1632.0,1631.9,83.80839333]
[1693944347930,919.69872943,1632.0,1631.9,83.80839333]
[1693944348298,809.70232943,1632.0,1631.9,83.80839333]
[1693944348627,798.04274943,1632.0,1631.9,83.80839333]
[1693944350202,797.98184943,1632.0,1631.9,85.73363674]
[1693944350713,797.98184943,1632.0,1631.9,85.73036198]
[1693944350924,797.55884943,1632.0,1631.9,85.73036198]
[1693944351712,797.55884943,1632.0,1631.9,77.73036198]
[1693944352531,797.55884943,1632.0,1631.9,85.73036198]
[1693944353028,797.05884943,1632.0,1631.9,85.73036198]
[1693944355091,796.56884943,1632.0,1631.9,85.73036198]
[1693944356204,796.56884943,1632.0,1631.9,77.73036198]
[1693944356603,796.56884943,1632.0,1631.9,85.73036198]
[1693944357421,796.56884943,1632.0,1631.9,81.16562644]
[1693944357625,796.56884943,1632.0,1631.9,85.75094484]
[1693944357828,796.09884943,1632.0,1631.9,85.75094484]
[1693944358541,795.43144943,1632.0,1631.9,85.75094484]
[1693944359237,795.43144943,1632.0,1631.9,77.75094484]
[1693944359540,795.43144943,1632.0,1631.9,85.75094484]
[1693944360238,795.43144943,1632.0,1631.9,77.75094484]
[1693944361005,795.37144943,1632.0,1631.9,85.75094484]
[1693944361231,794.23604079,1632.0,1631.9,85.75094484]
[1693944361916,793.76604079,1632.0,1631.9,85.75094484]
[1693944363609,793.76604079,1632.0,1631.9,79.62312484]
[1693944363811,793.76604079,1632.0,1631.9,77.69891395]
[1693944364005,793.76604079,1632.0,1631.9,79.30250645]
[1693944364234,793.76604079,1632.0,1631.9,77.32511063]
[1693944364625,793.76604079,1632.0,1631.9,68.05651076]
[1693944365526,793.76604079,1632.0,1631.9,70.12155897]
[1693944365937,793.76604079,1632.0,1631.9,64.12155897]
[1693944366135,793.76604079,1632.0,1631.9,47.50669076]
[1693944366336,793.76604079,1632.0,1631.9,46.18569076]
[1693944366923,793.76604079,1632.0,1631.9,47.46891472]
[1693944367618,793.26925456,1632.0,1631.9,46.18569076]
[1693944368045,793.26925456,1632.0,1631.9,47.4690351]
[1693944368554,793.26925456,1632.0,1631.9,46.18569076]
[1693944371815,793.26925456,1632.0,1631.9,38.64703296]
[1693944372016,793.26925456,1632.0,1631.9,39.60997517]
[1693944374356,793.26925456,1632.0,1631.9,38.32612047]
[1693944374669,793.26925456,1632.0,1631.9,39.60997517]
[1693944375387,793.26925456,1632.0,1631.9,38.32612047]
[1693944376374,793.26925456,1632.0,1631.9,39.60997517]
[1693944377189,793.26925456,1632.0,1631.9,38.64703296]
[1693944379997,793.26925456,1632.0,1631.9,45.73801131]
[1693944382794,793.26925456,1632.0,1631.9,39.61019131]
[1693944383098,793.26925456,1632.0,1631.9,36.61019131]
[1693944385496,793.26925456,1632.0,1631.9,35.32633661]
[1693944385857,793.26925456,1632.0,1631.9,23.13151235]
[1693944386191,793.26925456,1632.0,1631.9,14.92597665]
[1693944386361,793.26925456,1632.0,1631.9,21.05379665]
[1693944386554,793.26925456,1632.0,1631.9,14.92597665]
[1693944387288,793.26925456,1632.0,1631.9,17.92597665]
[1693944387494,793.26925456,1632.0,1631.9,24.05379665]
[1693944387787,793.26925456,1632.0,1631.9,17.92597665]
[1693944388588,799.40328308,1632.0,1631.9,17.92597665]
[1693944389412,793.26925456,1632.0,1631.9,17.92597665]
[1693944390616,793.26925456,1632.0,1631.9,23.41163129]
[1693944391491,793.26925456,1632.0,1631.9,17.28381129]
[1693944392003,793.26925456,1632.0,1631.9,11.15599129]
[1693944392312,794.59025456,1632.0,1631.9,8.49488378]
[1693944392617,799.40328308,1632.0,1631.9,8.0]
[1693944392803,801.54749677,1632.0,1631.9,8.0]
[1693944393215,801.54749677,1632.0,1631.9,3.0]
[1693944394101,801.54749677,1632.0,1631.8,3.0]
[1693944394416,6.13402852,1631.9,1631.8,8.0]
[1693944394616,6.58134323,1631.9,1631.8,9.06485224]
[1693944402009,6.58134323,1631.9,1631.8,6.06485224]
[1693944402214,26.28580323,1631.9,1631.7,0.48887798]
[1693944402426,26.28580323,1631.9,1631.6,1.69734905]
[1693944402606,2.62858032,1631.8,1631.7,5.0]
[1693944402801,10.07778032,1631.8,1631.7,5.0]
[1693944403003,12.22225676,1631.8,1631.7,5.0]
[1693944403664,12.22225676,1631.8,1631.6,0.1]
[1693944403868,12.66552283,1631.8,1631.6,0.1]
[1693944404127,1.26655228,1631.7,1631.6,0.1]
[1693944404364,1.26655228,1631.7,1631.6,5.1]
[1693944404790,1.26655228,1631.7,1631.6,0.1]
[1693944404990,1.26655228,1631.7,1631.6,0.05]
[1693944411473,8.53902283,1631.8,1631.6,0.05]
[1693944411474,7.21802283,1631.8,1631.6,0.05]
[1693944413238,4.58944251,1631.8,1631.6,0.05]
[1693944420983,10.71764251,1631.8,1631.6,0.05]
[1693944426792,10.71764251,1631.8,1631.5,1.22382173]
[1693944427097,10.71764251,1631.8,1631.6,1.06498758]
[1693944429970,10.71764251,1631.8,1631.5,0.58165637]
[1693944430276,10.71764251,1631.8,1631.5,2.28884005]
[1693944430499,10.71764251,1631.8,1631.6,1.0650189]
[1693944430703,1.321,1631.7,1631.5,0.58165637]
[1693944430899,7.44973,1631.7,1631.5,0.58165637]
[1693944431093,7.89274897,1631.7,1631.5,0.58165637]
[1693944431293,14.02147897,1631.7,1631.5,0.58165637]
[1693944431499,16.71246764,1631.7,1631.5,0.58165637]
[1693944431899,2.14473926,1631.6,1631.5,0.58165637]
[1693944432277,2.14473926,1631.6,1631.5,1.64672603]
[1693944433587,2.58694732,1631.6,1631.5,1.64672603]
[1693944435614,8.71589732,1631.6,1631.5,1.64672603]
[1693944435814,10.60155892,1631.6,1631.5,1.64672603]
[1693944436117,11.92255892,1631.6,1631.5,1.64672603]
[1693944438621,11.92255892,1631.6,1631.5,1.16506966]
[1693944438918,18.05150892,1631.6,1631.5,1.06506966]
[1693944439123,24.18045892,1631.6,1631.4,0.1]
[1693944439321,9.86816515,1631.5,1631.1,0.7427263]
[1693944439619,18.3891,1631.4,1631.2,5.0]
[1693944439782,18.3891,1631.4,1631.1,0.1]
[1693944439982,2.04539659,1631.1,1631.0,1.70588465]
[1693944440213,3.36639659,1631.1,1631.0,2.77121678]
[1693944440422,3.36639659,1631.1,1631.0,6.80805843]
[1693944440624,3.36639659,1631.1,1631.0,1.80805843]
[1693944441202,28.50090085,1631.1,1631.0,5.843e-05]
[1693944441399,6.82953168,1631.1,1630.9,0.1252787]
[1693944441721,1.321,1631.1,1630.9,0.1252787]
[1693944441924,1.92051248,1630.8,1630.7,8.19845]
[1693944442130,1.92051248,1630.8,1630.7,13.19845]
[1693944442283,1.92051248,1630.8,1630.7,12.82963365]
[1693944442489,1.92051248,1630.8,1630.7,6.23215]
[1693944443487,1.92051248,1630.8,1630.7,14.23215]
[1693944443691,1.92051248,1630.8,1630.7,15.82963365]
[1693944444431,1.92051248,1630.8,1630.7,16.32893716]
[1693944444829,1.92051248,1630.8,1630.7,14.73145351]
[1693944445211,1.92051248,1630.8,1630.7,16.0128087]
[1693944446407,1.92051248,1630.8,1630.7,35.34728612]
[1693944446408,0.84022421,1630.8,1630.7,35.34728612]
[1693944446598,0.84022421,1630.8,1630.7,40.74596197]
[1693944446794,0.84022421,1630.8,1630.7,39.78280362]
[1693944447616,7.98996,1631.6,1630.9,3.0]
[1693944447818,7.98996,1631.6,1631.1,12.26158]
[1693944447819,7.673021,1631.6,1631.1,12.26158]
[1693944448006,7.673021,1631.6,1631.1,15.32859426]
[1693944448210,0.39917465,1631.5,1631.1,15.32859426]
[1693944448565,0.39917465,1631.5,1631.3,6.13008]
[1693944448730,0.39917465,1631.5,1631.3,9.19709426]
[1693944448941,2.14473926,1631.6,1631.3,9.19709426]
[1693944449309,0.39952466,1631.4,1631.3,9.19709426]
[1693944449834,2.14473926,1631.6,1631.3,9.19709426]
[1693944458633,8.27368926,1631.6,1631.3,9.19709426]
[1693944460611,8.27368926,1631.6,1631.3,3.06701426]
[1693944462945,8.27368926,1631.6,1631.3,3.56508496]
[1693944463650,0.39598087,1631.5,1631.3,9.69515496]
[1693944469143,0.39598087,1631.5,1631.3,0.4980707]
[1693944469348,8.00521988,1631.5,1631.2,3.0]
[1693944469546,8.00521988,1631.5,1631.2,6.06701426]
[1693944470241,2.14500215,1631.4,1631.2,6.06701426]
[1693944472156,2.14500215,1631.4,1631.2,12.19745426]
[1693944472357,2.14500215,1631.4,1631.2,13.67330703]
[1693944472559,2.14500215,1631.4,1631.2,14.15354064]
[1693944476260,2.14500215,1631.4,1631.2,12.67768787]
[1693944476778,2.14500215,1631.4,1631.3,9.19709426]
[1693944476951,2.14500215,1631.4,1631.3,10.26228841]
[1693944478087,2.14500215,1631.4,1631.3,15.26228841]
[1693944478657,2.53722474,1631.4,1631.3,15.26228841]
[1693944482684,2.53722474,1631.4,1631.3,16.74054769]
[1693944483618,2.48722474,1631.4,1631.3,16.74054769]
[1693944491224,2.48722474,1631.4,1631.3,17.38173191]
[1693944493294,2.48722474,1631.4,1631.3,18.34362248]
[1693944493696,2.48722474,1631.4,1631.3,12.21354248]
[1693944495927,2.48722474,1631.4,1631.3,11.25165191]
[1693944496230,2.48722474,1631.4,1631.3,8.18463765]
[1693944496533,2.48722474,1631.4,1631.3,6.70637837]
[1693944497193,2.48722474,1631.4,1631.3,1.70637837]
[1693944504046,2.48722474,1631.4,1631.3,6.70637837]
[1693944511450,2.48722474,1631.4,1631.3,8.18463765]
[1693944524986,2.48722474,1631.4,1631.3,14.25165191]
[1693944525187,794.33989375,1632.0,1631.4,3.0]
[1693944525348,795.23094675,1632.0,1631.5,31.64573604]
[1693944525550,794.58971542,1632.0,1631.6,7.77959332]
[1693944525773,794.58971542,1632.0,1631.7,24.50615901]
[1693944526091,794.58971542,1632.0,1631.7,24.45258426]
[1693944526092,2.14447644,1631.8,1631.7,24.45258426]
[1693944526245,2.14447644,1631.8,1631.7,32.71191041]
[1693944526786,792.73681542,1632.0,1631.7,32.71191041]
[1693944527078,792.73681542,1632.0,1631.8,8.25932615]
[1693944527282,792.73681542,1632.0,1631.9,15.32265426]
[1693944527644,792.73681542,1632.0,1631.9,3.06701426]
[1693944529548,792.73681542,1632.0,1631.9,9.19483426]
[1693944532389,792.73681542,1632.0,1631.9,36.89929426]
[1693944532596,792.73681542,1632.0,1631.9,32.93047426]
[1693944533088,793.06313326,1632.0,1631.9,34.52766221]
[1693944533459,793.06313326,1632.0,1631.9,32.93047426]
[1693944534358,793.06313326,1632.0,1631.9,29.93047426]
[1693944534777,793.06313326,1632.0,1631.9,32.93047426]
[1693944536584,793.06313326,1632.0,1631.9,21.36166441]
[1693944536783,793.06313326,1632.0,1631.9,27.48948441]
[1693944537000,793.06313326,1632.0,1631.9,33.61730441]
[1693944554734,793.06313326,1632.0,1631.9,30.13730441]
[1693944554946,799.19716178,1632.0,1631.9,14.69548416]
[1693944555144,799.19716178,1632.0,1631.9,20.82330416]
[1693944556737,793.06313326,1632.0,1631.9,20.82330416]
[1693944557238,793.06313326,1632.0,1631.9,15.82330416]
[1693944560632,793.06313326,1632.0,1631.9,9.69548416]
[1693944562057,793.06313326,1632.0,1631.9,14.69548416]
[1693944569568,799.19058326,1632.0,1631.9,0.5006499]
[1693944569769,799.19716178,1632.0,1631.8,9.128]
[1693944569975,799.19716178,1632.0,1631.8,18.32300426]
[1693944570191,799.19716178,1632.0,1631.8,19.92039221]
[1693944570489,799.19716178,1632.0,1631.9,1.06492717]
[1693944570646,799.19716178,1632.0,1631.9,7.19274717]
[1693944571248,793.06313326,1632.0,1631.9,7.19274717]
[1693944573478,793.06313326,1632.0,1631.9,1.06492717]
[1693944575176,812.76648326,1632.0,1631.7,1.59738795]
[1693944575383,814.66148326,1632.0,1631.8,5.0]
[1693944575564,6.13402852,1631.9,1631.8,5.0]
[1693944575744,18.38966852,1631.9,1631.8,5.0]
[1693944575946,18.38966852,1631.9,1631.8,2.85552356]
[1693944576175,18.7172335,1631.9,1631.8,0.71104712]
[1693944576387,18.7172335,1631.9,1631.4,3.20111236]
[1693944576614,4.01619979,1631.8,1631.5,1.06514751]
[1693944576890,6.12857,1631.7,1631.4,12.90051362]
[1693944577061,6.12857,1631.7,1631.5,1.06515869]
[1693944577260,6.12857,1631.7,1631.4,12.90051362]
[1693944577261,6.12857,1631.7,1631.4,6.12944]
[1693944577461,2.14473926,1631.6,1631.4,6.12944]
[1693944577762,2.97207019,1631.6,1631.4,6.12944]
[1693944579477,9.10108019,1631.6,1631.4,6.12944]
[1693944580283,9.10108019,1631.6,1631.3,14.98224965]
[1693944580479,9.10108019,1631.6,1631.3,17.40789029]
[1693944580684,2.97207019,1631.6,1631.4,1.06515793]
[1693944580997,2.14473926,1631.6,1631.4,14.92155588]
[1693944581290,2.14473926,1631.6,1631.4,13.85639795]
[1693944581491,2.14473926,1631.6,1631.4,12.25901]
[1693944582964,2.14473926,1631.6,1631.4,21.45572426]
[1693944583898,0.32645279,1631.5,1631.4,21.45572426]
[1693944584087,0.32645279,1631.5,1631.4,22.52084089]
[1693944585294,0.32645279,1631.5,1631.4,27.11848412]
[1693944585665,0.32645279,1631.5,1631.4,27.59848412]
[1693944589507,0.32645279,1631.5,1631.4,27.11848412]
[1693944589797,0.32645279,1631.5,1631.4,19.39114089]
[1693944591400,6.895552,1631.5,1631.3,12.74362808]
[1693944591582,6.895552,1631.5,1631.3,8.21150108]
[1693944591777,0.766232,1631.5,1631.3,6.61377808]
[1693944591985,0.766232,1631.5,1631.3,12.74385808]
[1693944592282,0.766232,1631.5,1631.3,14.34158108]
[1693944594478,0.32645279,1631.5,1631.3,14.34158108]
[1693944597004,0.32645279,1631.5,1631.4,3.06701426]
[1693944597312,0.32645279,1631.5,1631.4,16.39152109]
[1693944597486,0.32645279,1631.5,1631.4,25.52122109]
[1693944597979,0.32645279,1631.5,1631.4,27.11887533]
[1693944598177,0.32645279,1631.5,1631.4,25.52122109]
[1693944598573,0.32645279,1631.5,1631.4,27.11888033]
[1693944598781,0.32645279,1631.5,1631.4,25.52122109]
[1693944599414,0.32645279,1631.5,1631.4,27.11887568]
[1693944601720,0.32645279,1631.5,1631.4,25.52122109]
[1693944606649,0.32645279,1631.5,1631.4,19.39152109]
[1693944606946,0.32645279,1631.5,1631.4,13.26182109]
[1693944610547,0.32645279,1631.5,1631.4,19.39152109]
[1693944614219,0.32645279,1631.5,1631.4,10.19480683]
[1693944614424,0.771432,1631.5,1631.4,1.06510683]
[1693944614624,0.771432,1631.5,1631.3,14.34122582]
[1693944614845,0.771432,1631.5,1631.3,17.40824008]
[1693944616955,0.32645279,1631.5,1631.3,17.40824008]
[1693944617154,0.32645279,1631.5,1631.4,1.06517876]
[1693944617454,0.32645279,1631.5,1631.4,24.11902076]
[1693944619468,0.32645279,1631.5,1631.4,24.76039438]
[1693944625873,0.32645279,1631.5,1631.4,31.90564027]
[1693944626083,0.32645279,1631.5,1631.4,31.90563948]
[1693944626449,0.32645279,1631.5,1631.4,31.26426586]
[1693944627578,0.32645279,1631.5,1631.4,25.08137155]
[1693944627958,0.32645279,1631.5,1631.4,25.72491397]
[1693944628480,0.32645279,1631.5,1631.4,19.59521397]
[1693944629649,6.45577279,1631.5,1631.4,3.30644892]
[1693944629849,6.900752,1631.5,1631.4,1.70872118]
[1693944632284,8.221752,1631.5,1631.4,1.70872118]
[1693944632689,8.221752,1631.5,1631.4,1.06517876]
[1693944632870,8.50774016,1631.5,1631.4,1.06517876]
[1693944643471,7.18674016,1631.5,1631.4,1.06517876]
[1693944643703,6.74176095,1631.5,1631.4,1.06517876]
[1693944643910,0.61244095,1631.5,1631.4,13.96812118]
[1693944644477,0.61244095,1631.5,1631.4,15.56584892]
[1693944665707,0.61244095,1631.5,1631.4,24.76256318]
[1693944667415,0.61244095,1631.5,1631.4,24.76247026]
[1693944675939,0.61244095,1631.5,1631.4,6.37337026]
[1693944676129,0.61244095,1631.5,1631.4,23.16478211]
[1693944676323,0.61244095,1631.5,1631.4,24.76247026]
[1693944682364,0.61244095,1631.5,1631.4,25.72482105]
[1693944686176,0.61244095,1631.5,1631.4,25.08127863]
[1693944686966,0.61244095,1631.5,1631.4,18.95157863]
[1693944687272,0.61244095,1631.5,1631.4,11.22419048]
[1693944687435,0.61244095,1631.5,1631.4,17.40714854]
[1693944687635,0.61244095,1631.5,1631.4,19.00483669]
[1693944690652,0.61244095,1631.5,1631.4,25.13453669]
[1693944693658,0.61244095,1631.5,1631.4,22.47172311]
[1693944693859,0.61244095,1631.5,1631.4,25.13450946]
[1693944694260,0.61244095,1631.5,1631.4,25.1345335]
[1693944704966,0.61244095,1631.5,1631.4,26.42199353]
[1693944706054,0.61244095,1631.5,1631.4,25.1345335]
[1693944713010,0.61244095,1631.5,1631.4,27.02407904]
[1693944713174,0.61244095,1631.5,1631.4,25.1345335]
[1693944717503,0.61244095,1631.5,1631.4,18.9515514]
[1693944717709,0.61244095,1631.5,1631.4,19.59542716]
[1693944718313,0.61244095,1631.5,1631.4,25.13458237]
[1693944718609,0.61244095,1631.5,1631.4,18.9515514]
[1693944718814,0.61244095,1631.5,1631.4,19.59542548]
[1693944719319,0.61244095,1631.5,1631.4,34.00314]
[1693944719517,0.61244095,1631.5,1631.4,44.99161371]
[1693944719818,0.61244095,1631.5,1631.4,47.52563601]
[1693944719819,0.54687515,1631.5,1631.4,47.52563601]
[1693944719992,2.14473926,1631.6,1631.5,4.45482887]
[1693944720320,2.14434506,1631.9,1631.5,41.44616016]
[1693944720486,2.14434506,1631.9,1631.8,0.64374811]
[1693944720689,2.14434506,1631.9,1631.8,22.57536237]
[1693944720911,2.14983992,1631.9,1631.8,26.64047691]
[1693944721214,0.00549486,1631.9,1631.8,28.23814872]
[1693944722320,0.00549486,1631.9,1631.8,27.54440061]
[1693944723519,0.00549486,1631.9,1631.8,33.72618304]
[1693944724232,0.00549486,1631.9,1631.8,27.54440061]
[1693944725656,0.00549486,1631.9,1631.8,43.69048079]
[1693944725803,0.00549486,1631.9,1631.8,46.40745435]
[1693944726203,0.00549486,1631.9,1631.8,47.37085611]
[1693944727341,0.52266274,1631.9,1631.8,46.08335988]
[1693944728541,0.01630429,1631.9,1631.8,52.50535988]
[1693944728835,0.50794058,1631.9,1631.8,52.50535988]
[1693944729039,792.73681542,1632.0,1631.9,2.0]
[1693944729244,792.73681542,1632.0,1631.9,51.55266698]
[1693944729245,778.09758721,1632.0,1631.9,51.55266698]
[1693944729439,778.09758721,1632.0,1631.9,48.70340079]
[1693944729440,582.31226914,1632.0,1631.9,48.70340079]
[1693944729620,582.31226914,1632.0,1631.9,52.95054455]
[1693944730141,505.34909742,1632.0,1631.9,53.56164455]
[1693944730355,505.34909742,1632.0,1631.9,56.80499427]
[1693944730356,276.36143742,1632.0,1631.9,56.80499427]
[1693944730522,276.36143742,1632.0,1631.9,57.86617819]
[1693944730923,276.36143742,1632.0,1631.9,51.44417819]
[1693944731155,276.36143742,1632.0,1631.9,49.15038174]
[1693944731358,276.36143742,1632.0,1631.9,51.44417819]
[1693944731663,276.36143742,1632.0,1631.9,57.86617819]
[1693944732449,276.36143742,1632.0,1631.9,55.57238174]
[1693944732957,276.36143742,1632.0,1631.9,57.86617819]
[1693944733119,276.36143742,1632.0,1631.9,63.99399819]
[1693944733319,276.36143742,1632.0,1631.9,62.07164847]
[1693944736365,276.82492575,1632.0,1631.9,62.07164847]
[1693944736661,253.32676077,1632.0,1631.9,62.07164847]
[1693944736827,73.11915077,1632.0,1631.9,62.07164847]
[1693944738256,71.58133296,1632.0,1631.9,62.07164847]
[1693944738465,69.74956181,1632.0,1631.9,62.07164847]
[1693944738755,61.50271826,1632.0,1631.9,60.50650372]
[1693944738958,53.56588514,1632.0,1631.9,61.28301258]
[1693944739457,53.56588514,1632.0,1631.9,63.2053623]
[1693944739662,53.56588514,1632.0,1631.9,61.28301258]
[1693944739864,52.43049538,1632.0,1631.9,61.28301258]
[1693944744433,50.72740549,1632.0,1631.9,61.8957668]
[1693944744736,50.72740549,1632.0,1631.9,67.8957668]
[1693944744934,50.42700549,1632.0,1631.9,67.8957668]
[1693944745368,50.42700549,1632.0,1631.9,63.49132314]
[1693944745947,50.42700549,1632.0,1631.9,69.49132314]
[1693944746873,48.15622526,1632.0,1631.9,69.49132314]
[1693944747075,48.15622526,1632.0,1631.9,67.19752669]
[1693944748669,47.67622526,1632.0,1631.9,67.19752669]
[1693944750346,46.30341826,1632.0,1631.9,67.19752669]
[1693944750545,46.30341826,1632.0,1631.9,67.8996221]
[1693944750741,1.9143,1632.6,1632.5,3.0]
[1693944751078,0.101,1633.1,1633.0,3.0]
[1693944751293,0.0076711,1633.5,1633.4,3.0]
[1693944751446,0.0076711,1633.5,1633.4,6.0]
[1693944751647,0.0076711,1633.5,1633.4,3.0]
[1693944751850,14.06218259,1633.5,1632.9,0.63792441]
[1693944752051,1.321,1633.3,1633.0,8.0]
[1693944752274,1.321,1633.4,1633.1,3.0]
[1693944752575,8.2645862,1633.4,1633.1,3.0]
[1693944752943,0.00405311,1633.3,1633.1,3.0]
[1693944753968,0.48498148,1633.2,1633.1,3.0]
[1693944754180,1.80598148,1633.2,1633.1,8.0]
[1693944754665,0.48498148,1633.2,1633.1,8.0]
[1693944754855,0.48902618,1633.2,1633.1,8.0]
[1693944755569,0.48902618,1633.2,1633.1,3.0]
[1693944755770,0.48902618,1633.2,1633.0,3.0]
[1693944756345,0.48902618,1633.2,1632.9,3.0]
[1693944756749,7.93297618,1633.2,1632.8,6.0]
[1693944756976,0.79329762,1633.1,1632.8,6.0]
[1693944757178,2.44072618,1633.2,1632.8,6.0]
[1693944757557,2.44072618,1633.2,1632.9,5.0]
[1693944758867,9.88471618,1633.2,1632.9,5.0]
[1693944759254,16.00770618,1633.2,1632.9,5.0]
[1693944759452,9.88471618,1633.2,1632.9,5.0]
[1693944759683,0.98847162,1633.1,1632.9,8.1]
[1693944760047,3.13527759,1633.1,1632.9,8.1]
[1693944760383,0.48906957,1633.0,1632.9,8.1]
[1693944760574,0.48906957,1633.0,1632.9,11.1]
[1693944760953,0.49309172,1633.0,1632.9,11.1]
[1693944769318,0.49309172,1633.0,1632.9,12.16413924]
[1693944769615,0.49309172,1633.0,1632.9,11.1]
[1693944770019,0.46859173,1633.0,1632.9,6.1]
[1693944770316,0.46859173,1633.0,1632.9,7.1641435]
[1693944770919,0.4723037,1633.0,1632.9,7.16414408]
[1693944773322,0.4723037,1633.0,1632.9,7.80206849]
[1693944774306,0.4723037,1633.0,1632.9,18.92613849]
[1693944774499,0.00371197,1633.0,1632.9,20.52235462]
[1693944774924,1.99737857,1633.1,1632.9,21.47924123]
[1693944775104,1.99737857,1633.1,1633.0,1.06414408]
[1693944775495,1.99737857,1633.1,1633.0,1.70206849]
[1693944775719,1.99737857,1633.1,1633.0,1.06414408]
[1693944776025,2.00109896,1633.1,1633.0,1.06414408]
[1693944777827,2.4904493,1633.1,1633.0,1.06414408]
[1693944778026,2.4904493,1633.1,1633.0,2.66036021]
[1693944778190,2.4904493,1633.1,1633.0,3.29828462]
[1693944778629,2.4904493,1633.1,1633.0,1.70206849]
[1693944781221,2.4904493,1633.1,1633.0,1.06414408]
[1693944781497,2.4904493,1633.1,1633.0,1.70206849]
[1693944782126,2.4904493,1633.1,1633.0,6.70206849]
[1693944782319,2.4904493,1633.1,1633.0,6.06414408]
[1693944784927,2.4904493,1633.1,1633.0,12.18783408]
[1693944785120,2.4904493,1633.1,1633.0,28.04956549]
[1693944785320,2.4904493,1633.1,1633.0,27.09267888]
[1693944785632,2.00109896,1633.1,1633.0,27.09267888]
[1693944787097,2.48651104,1633.1,1633.0,27.09267888]
[1693944787995,2.49024652,1633.1,1633.0,27.09267888]
[1693944790230,2.49024652,1633.1,1633.0,30.17762035]
[1693944790913,2.49024652,1633.1,1633.0,30.6675443]
[1693944791296,2.49024652,1633.1,1633.0,30.02961989]
[1693944792714,2.49024652,1633.1,1633.0,30.0293221]
[1693944793237,2.49024652,1633.1,1633.0,41.73336357]
[1693944793238,0.86623186,1633.1,1633.0,41.73336357]
[1693944794065,0.86249638,1633.1,1633.0,41.73336357]
[1693944794231,1.8525711,1633.5,1633.2,3.0]
[1693944794432,1.8525711,1633.5,1633.3,7.82815259]
[1693944794631,2.63518965,1633.4,1633.3,11.36016507]
[1693944794837,2.63518965,1633.4,1633.3,12.42408843]
[1693944795036,2.63850617,1633.4,1633.3,12.42408843]
[1693944795411,2.63850617,1633.4,1633.3,17.42408843]
[1693944795635,2.63850617,1633.4,1633.3,34.85808651]
[1693944795839,2.63850617,1633.4,1633.3,35.17893032]
[1693944796041,0.49603544,1633.4,1633.3,37.30698518]
[1693944796333,0.49603544,1633.4,1633.3,38.91120425]
[1693944796535,0.49603544,1633.4,1633.3,37.30698518]
[1693944798055,0.49271892,1633.4,1633.3,37.30698518]
[1693944800424,0.49271892,1633.4,1633.3,38.26945958]
[1693944801721,0.49271892,1633.4,1633.3,37.30698518]
[1693944803759,0.49271892,1633.4,1633.3,37.9197394]
[1693944804753,0.49271892,1633.4,1633.3,40.10546593]